fUST/lending_fUST_20240501
["ID","MTS","AMOUNT","RATE_DAILY","PERIOD"]
[325005411,1714503053152,-500.0,0.00033698,7]
[325005414,1714503053163,-500.0,0.00033698,7]
[325005416,1714503053173,-500.0,0.00033698,7]
[325005418,1714503053182,-316.75350134,0.00033698,7]
[325005420,1714503053192,-195.29954388,0.00033698,7]
[325005422,1714503053202,-500.0,0.00033698,7]
[325005423,1714503053211,-500.0,0.00033698,7]
[325005424,1714503053221,-500.0,0.00033698,7]
[325005425,1714503053231,-605.09,0.00033698,7]
[325005426,1714503053241,-500.0,0.00033698,7]
[325005427,1714503053252,-500.0,0.00033698,7]
[325005428,1714503053261,-576.85,0.00033698,7]
[325005429,1714503053271,-500.0,0.00033698,7]
[325005430,1714503053281,-500.0,0.00033698,7]
[325005431,1714503053291,-718.76,0.00033698,7]
[325005432,1714503053303,-500.0,0.00033698,7]
[325005433,1714503053313,-500.0,0.00033698,7]
[325005434,1714503053323,-500.0,0.00033698,7]
[325005435,1714503053332,-500.0,0.00033698,7]
[325005437,1714503053343,-1963.73,0.00033698,7]
[325005439,1714503053353,-500.0,0.00033698,7]
[325005441,1714503053363,-500.0,0.00033698,7]
[325005443,1714503053372,-500.0,0.00033698,7]
[325005445,1714503053381,-425.27009862,0.00033698,7]
[325005447,1714503053391,-500.0,0.00033698,7]
[325005449,1714503053400,-500.0,0.00033698,7]
[325005451,1714503053410,-2044.95,0.00033698,7]
[325005453,1714503053419,-500.0,0.00033698,7]
[325005455,1714503053429,-500.0,0.00033698,7]
[325005457,1714503053439,-502.72,0.00033698,7]
[325005459,1714503053448,-500.0,0.00033698,7]
[325005461,1714503053457,-500.0,0.00033698,7]
[325005463,1714503053466,-604.5924382,0.00033698,7]
[325005465,1714503053476,-500.0,0.00033698,7]
[325005467,1714503053485,-500.0,0.00033698,7]
[325005468,1714503053494,-500.0,0.00033972,7]
[325005471,1714503053504,-500.0,0.00033972,7]
[325005473,1714503053513,-500.0,0.00033972,7]
[325005475,1714503053522,-696.74,0.00033972,7]
[325005477,1714503053532,-500.0,0.00033972,7]
[325005479,1714503053541,-500.0,0.00033972,7]
[325005481,1714503053551,-554.14,0.00033972,7]
[325005482,1714503053563,-500.0,0.00033972,7]
[325005484,1714503053573,-500.0,0.00033972,7]
[325005486,1714503053582,-500.0,0.00033972,7]
[325005488,1714503053593,-500.0,0.00033972,7]
[325005490,1714503053603,-500.0,0.00033972,7]
[325005492,1714503053612,-500.0,0.00033972,7]
[325005494,1714503053621,-500.0,0.00033972,7]
[325005496,1714503053631,-500.0,0.00033972,7]
[325005498,1714503053639,-500.0,0.00033972,7]
[325005500,1714503053650,-500.0,0.00033972,7]
[325005502,1714503053660,-500.0,0.00033972,7]
[325005504,1714503053669,-500.0,0.00033972,7]
[325005506,1714503053678,-500.0,0.00033972,7]
[325005508,1714503053688,-500.0,0.00033972,7]
[325005510,1714503053698,-574.65,0.00033972,7]
[325005512,1714503053707,-500.0,0.00033972,7]
[325005514,1714503053716,-500.0,0.00033972,7]
[325005516,1714503053726,-500.0,0.00033972,7]
[325005518,1714503053735,-500.0,0.00033972,7]
[325005520,1714503053744,-658.13,0.00033972,7]
[325005522,1714503053753,-573.67192691,0.00033972,7]
[325005524,1714503053762,-500.0,0.00033972,7]
[325005526,1714503053771,-601.25055373,0.00033972,7]
[325005528,1714503053780,-500.0,0.00033972,7]
[325005530,1714503053790,-1040.92,0.00033972,7]
[325005532,1714503053798,-510.31,0.00033972,7]
[325005534,1714503053808,-500.0,0.00033972,7]
[325005536,1714503053817,-500.0,0.00033972,7]
[325005539,1714503053829,-941.79,0.00033972,7]
[325005540,1714503053840,-500.0,0.00033972,7]
[325005542,1714503053849,-500.0,0.00033972,7]
[325005544,1714503053858,-500.0,0.00033972,7]
[325005546,1714503053868,-500.0,0.00033972,7]
[325005548,1714503053877,-500.0,0.00033972,7]
[325005551,1714503053887,-500.0,0.00033972,7]
[325005553,1714503053896,-500.0,0.00033972,7]
[325005555,1714503053906,-500.0,0.00033972,7]
[325005557,1714503053915,-605.09,0.00033972,7]
[325005559,1714503053924,-500.0,0.00033972,7]
[325005560,1714503053933,-163.80760333,0.00033972,7]
[325005562,1714503053943,-576.85,0.00033972,7]
[325005564,1714503053951,-500.0,0.00033972,7]
[325005566,1714503053961,-500.0,0.00033972,7]
[325005568,1714503053970,-718.76,0.00033972,7]
[325005570,1714503053979,-500.0,0.00033972,7]
[325005572,1714503053988,-500.0,0.00033972,7]
[325005574,1714503053998,-500.0,0.00033972,7]
[325005576,1714503054007,-500.0,0.00033972,7]
[325005578,1714503054017,-1963.73,0.00033972,7]
[325005580,1714503054026,-500.0,0.00033972,7]
[325005582,1714503054036,-500.0,0.00033972,7]
[325005585,1714503054045,-500.0,0.00033972,7]
[325005587,1714503054055,-500.0,0.00033972,7]
[325005589,1714503054064,-2044.95,0.00033972,7]
[325005591,1714503054073,-500.0,0.00033972,7]
[325005593,1714503054083,-500.0,0.00033972,7]
[325005595,1714503054093,-502.72,0.00033972,7]
[325005597,1714503054102,-500.0,0.00033972,7]
[325005599,1714503054111,-500.0,0.00033972,7]
[325005601,1714503054120,-500.0,0.00033972,7]
[325005602,1714503054129,-500.0,0.00033972,7]
[325005605,1714503054139,-466.43678541,0.00034,4]
[325005606,1714503054148,-185.147082,0.00034001,2]
[325005609,1714503054157,-500.0,0.00034246,7]
[325005611,1714503054166,-500.0,0.00034246,7]
[325005612,1714503054175,-500.0,0.00034246,7]
[325005615,1714503054185,-696.74,0.00034246,7]
[325005616,1714503054194,-500.0,0.00034246,7]
[325005617,1714503054203,-500.0,0.00034246,7]
[325005618,1714503054213,-554.14,0.00034246,7]
[325005619,1714503054222,-590.1,0.00034246,7]
[325005620,1714503054232,-500.0,0.00034246,7]
[325005621,1714503054241,-500.0,0.00034246,7]
[325005622,1714503054250,-500.0,0.00034246,7]
[325005623,1714503054260,-500.0,0.00034246,7]
[325005624,1714503054269,-500.0,0.00034246,7]
[325005625,1714503054279,-500.0,0.00034246,7]
[325005626,1714503054289,-500.0,0.00034246,7]
[325005627,1714503054300,-500.0,0.00034246,7]
[325005628,1714503054310,-500.0,0.00034246,7]
[325005629,1714503054319,-500.0,0.00034246,7]
[325005630,1714503054329,-500.0,0.00034246,7]
[325005631,1714503054340,-500.0,0.00034246,7]
[325005632,1714503054349,-574.65,0.00034246,7]
[325005633,1714503054359,-288.32178504,0.00034246,7]
[325005634,1714503054368,-500.0,0.00034246,7]
[325005635,1714503054377,-346.63213298,0.00034246,7]
[325005636,1714503054387,-500.0,0.00034246,7]
[325005637,1714503054396,-658.13,0.00034246,7]
[325005638,1714503054405,-500.0,0.00034246,7]
[325005639,1714503054415,-1040.92,0.00034246,7]
[325005640,1714503054424,-510.31,0.00034246,7]
[325005641,1714503054433,-500.0,0.00034246,7]
[325005642,1714503054443,-500.0,0.00034246,7]
[325005643,1714503054452,-941.79,0.00034246,7]
[325005644,1714503054462,-500.0,0.00034246,7]
[325005645,1714503054472,-508.27816758,0.00034246,7]
[325005646,1714503054481,-500.0,0.00034246,7]
[325005647,1714503054490,-439.5911198,0.00034246,7]
[325005648,1714503054500,-500.0,0.00034246,7]
[325005649,1714503054509,-500.0,0.00034246,7]
[325005650,1714503054518,-500.0,0.00034246,7]
[325005651,1714503054527,-605.09,0.00034246,7]
[325005652,1714503054537,-500.0,0.00034246,7]
[325005653,1714503054546,-576.85,0.00034246,7]
[325005654,1714503054558,-500.0,0.00034246,7]
[325005655,1714503054567,-500.0,0.00034246,7]
[325005656,1714503054576,-718.76,0.00034246,7]
[325005657,1714503054586,-500.0,0.00034246,7]
[325005659,1714503054595,-500.0,0.00034246,7]
[325005661,1714503054606,-500.0,0.00034246,7]
[325005663,1714503054615,-500.0,0.00034246,7]
[325005665,1714503054624,-1963.73,0.00034246,7]
[325005667,1714503054635,-500.0,0.00034246,7]
[325005669,1714503054644,-500.0,0.00034246,7]
[325005671,1714503054654,-500.0,0.00034246,7]
[325005673,1714503054663,-500.0,0.00034246,7]
[325005675,1714503054672,-2044.95,0.00034246,7]
[325005677,1714503054681,-500.0,0.00034246,7]
[325005679,1714503054690,-176.21774259,0.00034246,7]
[325005681,1714503054699,-502.72,0.00034246,7]
[325005683,1714503054708,-500.0,0.00034246,7]
[325005685,1714503054718,-500.0,0.00034246,7]
[325005687,1714503054727,-500.0,0.00034246,7]
[325005689,1714503054737,-500.0,0.00034246,7]
[325005691,1714503054746,-150.0,0.00034326,2]
[325005693,1714503054755,-751.9,0.00034514,14]
[325005695,1714503054764,-6325.35,0.00034515,2]
[325005697,1714503054774,-6325.35,0.00034515,2]
[325005699,1714503054783,-6325.35,0.00034515,2]
[325005701,1714503054792,-6325.35,0.00034515,2]
[325005703,1714503054801,-6325.35,0.00034515,2]
[325005705,1714503054810,-6325.35,0.00034515,2]
[325005707,1714503054819,-6325.35,0.00034515,2]
[325005709,1714503054829,-6325.35,0.00034515,2]
[325005711,1714503054838,-6325.35,0.00034515,2]
[325005713,1714503054848,-6325.35,0.00034515,2]
[325005715,1714503054857,-1203.1,0.00034519,55]
[325005717,1714503054867,-500.0,0.0003452,7]
[325005720,1714503054962,-500.0,0.0003452,7]
[325005721,1714503054972,-177.74878896,0.0003452,7]
[325005722,1714503054981,-696.74,0.0003452,7]
[325005723,1714503054990,-500.0,0.0003452,7]
[325005724,1714503054999,-500.0,0.0003452,7]
[325005725,1714503055008,-554.14,0.0003452,7]
[325005726,1714503055017,-500.0,0.0003452,7]
[325005727,1714503055027,-500.0,0.0003452,7]
[325005729,1714503055036,-500.0,0.0003452,7]
[325005731,1714503055045,-500.0,0.0003452,7]
[325005733,1714503055054,-500.0,0.0003452,7]
[325005735,1714503055062,-500.0,0.0003452,7]
[325005737,1714503055072,-500.0,0.0003452,7]
[325005739,1714503055081,-500.0,0.0003452,7]
[325005741,1714503055091,-500.0,0.0003452,7]
[325005743,1714503055100,-500.0,0.0003452,7]
[325005745,1714503055109,-500.0,0.0003452,7]
[325005747,1714503055118,-500.0,0.0003452,7]
[325005749,1714503055128,-574.65,0.0003452,7]
[325005751,1714503055137,-626.43062268,0.0003452,7]
[325005753,1714503055147,-500.0,0.0003452,7]
[325005755,1714503055156,-658.13,0.0003452,7]
[325005757,1714503055165,-500.0,0.0003452,7]
[325005759,1714503055175,-1040.92,0.0003452,7]
[325005761,1714503055184,-510.31,0.0003452,7]
[325005763,1714503055194,-212.98372724,0.0003452,7]
[325005765,1714503055204,-649.26783727,0.0003452,7]
[325005767,1714503055213,-941.79,0.0003452,7]
[325005769,1714503055222,-636.64,0.0003452,7]
[325005771,1714503055232,-500.0,0.0003452,7]
[325005773,1714503055242,-500.0,0.0003452,7]
[325005775,1714503055251,-500.0,0.0003452,7]
[325005777,1714503055261,-500.0,0.0003452,7]
[325005779,1714503055270,-605.09,0.0003452,7]
[325005781,1714503055279,-500.0,0.0003452,7]
[325005783,1714503055288,-576.85,0.0003452,7]
[325005785,1714503055298,-500.0,0.0003452,7]
[325005787,1714503055308,-500.0,0.0003452,7]
[325005789,1714503055317,-718.76,0.0003452,7]
[325005791,1714503055326,-500.0,0.0003452,7]
[325005793,1714503055336,-500.0,0.0003452,7]
[325005795,1714503055346,-500.0,0.0003452,7]
[325005797,1714503055355,-500.0,0.0003452,7]
[325005799,1714503055364,-1963.73,0.0003452,7]
[325005801,1714503055373,-500.0,0.0003452,7]
[325005803,1714503055382,-339.17706372,0.0003452,7]
[325005805,1714503055392,-527.34,0.0003452,7]
[325005807,1714503055401,-500.0,0.0003452,7]
[325005809,1714503055411,-2044.95,0.0003452,7]
[325005811,1714503055420,-500.0,0.0003452,7]
[325005813,1714503055429,-502.72,0.0003452,7]
[325005815,1714503055438,-500.0,0.0003452,7]
[325005817,1714503055447,-500.0,0.0003452,7]
[325005819,1714503055456,-500.0,0.0003452,7]
[325005821,1714503055466,-163.73844022,0.0003452,7]
[325005823,1714503055475,-400.450623,0.00034521,2]
[325005825,1714503055484,-641.255181,0.00034521,2]
[325005827,1714503055493,-1303.00315575,0.0003468,2]
[325005829,1714503055503,-500.0,0.00034794,7]
[325005831,1714503055511,-500.0,0.00034794,7]
[325005833,1714503055520,-696.74,0.00034794,7]
[325005835,1714503055529,-500.0,0.00034794,7]
[325005837,1714503055538,-500.0,0.00034794,7]
[325005839,1714503055547,-554.14,0.00034794,7]
[325005840,1714503055556,-500.0,0.00034794,7]
[325005842,1714503055568,-500.0,0.00034794,7]
[325005844,1714503055577,-500.0,0.00034794,7]
[325005846,1714503055586,-500.0,0.00034794,7]
[325005848,1714503055597,-500.0,0.00034794,7]
[325005850,1714503055607,-500.0,0.00034794,7]
[325005852,1714503055616,-500.0,0.00034794,7]
[325005854,1714503055625,-632.59230456,0.00034794,7]
[325005856,1714503055635,-500.0,0.00034794,7]
[325005858,1714503055646,-500.0,0.00034794,7]
[325005860,1714503055655,-500.0,0.00034794,7]
[325005862,1714503055664,-500.0,0.00034794,7]
[325005864,1714503055673,-574.65,0.00034794,7]
[325005866,1714503055682,-500.0,0.00034794,7]
[325005868,1714503055691,-658.13,0.00034794,7]
[325005870,1714503055700,-500.0,0.00034794,7]
[325005872,1714503055709,-1040.92,0.00034794,7]
[325005874,1714503055718,-510.31,0.00034794,7]
[325005876,1714503055728,-941.79,0.00034794,7]
[325005878,1714503055737,-500.0,0.00034794,7]
[325005880,1714503055746,-500.0,0.00034794,7]
[325005882,1714503055756,-500.0,0.00034794,7]
[325005884,1714503055765,-266.24524035,0.00034794,7]
[325005886,1714503055775,-605.09,0.00034794,7]
[325005888,1714503055784,-500.0,0.00034794,7]
[325005890,1714503055793,-576.85,0.00034794,7]
[325005892,1714503055802,-500.0,0.00034794,7]
[325005894,1714503055811,-500.0,0.00034794,7]
[325005896,1714503055820,-718.76,0.00034794,7]
[325005898,1714503055829,-500.0,0.00034794,7]
[325005900,1714503055838,-500.0,0.00034794,7]
[325005902,1714503055848,-500.0,0.00034794,7]
[325005904,1714503055857,-500.0,0.00034794,7]
[325005906,1714503055866,-1963.73,0.00034794,7]
[325005908,1714503055876,-330.07187551,0.00034794,7]
[325005910,1714503055885,-500.0,0.00034794,7]
[325005912,1714503055894,-2044.95,0.00034794,7]
[325005914,1714503055903,-500.0,0.00034794,7]
[325005916,1714503055912,-502.72,0.00034794,7]
[325005917,1714503055921,-500.0,0.00034794,7]
[325005919,1714503055930,-500.0,0.00034794,7]
[325005922,1714503055940,-500.0,0.00034794,7]
[325005924,1714503055949,-187.928216,0.0003483,2]
[325005925,1714503055958,-185.147082,0.0003483,2]
[325005928,1714503055968,-154.76784823,0.00035,15]
[325005930,1714503055978,-5916.15000564,0.00035,4]
[325005932,1714503055988,-214.63686045,0.00035,4]
[325005934,1714503055997,-854.20368441,0.00035,2]
[325005936,1714503056006,-169.28788133,0.00035,30]
[325005938,1714503056016,-425.54851133,0.00035,10]
[325005939,1714503056025,-729.7450776,0.00035,4]
[325005941,1714503056035,-578.98,0.00035068,7]
[325005943,1714503056043,-500.0,0.00035068,7]
[325005945,1714503056052,-696.74,0.00035068,7]
[325005948,1714503056062,-500.0,0.00035068,7]
[325005950,1714503056071,-500.0,0.00035068,7]
[325005951,1714503056080,-554.14,0.00035068,7]
[325005953,1714503056089,-500.0,0.00035068,7]
[325005956,1714503056098,-500.0,0.00035068,7]
[325005958,1714503056107,-500.0,0.00035068,7]
[325005960,1714503056117,-500.0,0.00035068,7]
[325005962,1714503056126,-500.0,0.00035068,7]
[325005964,1714503056135,-500.0,0.00035068,7]
[325005966,1714503056144,-500.0,0.00035068,7]
[325005967,1714503056154,-500.0,0.00035068,7]
[325005970,1714503056163,-500.0,0.00035068,7]
[325005972,1714503056173,-500.0,0.00035068,7]
[325005973,1714503056182,-500.0,0.00035068,7]
[325005975,1714503056191,-574.65,0.00035068,7]
[325005977,1714503056200,-357.67210651,0.00035068,7]
[325005979,1714503056210,-658.13,0.00035068,7]
[325005981,1714503056219,-500.0,0.00035068,7]
[325005983,1714503056228,-1040.92,0.00035068,7]
[325005985,1714503056237,-510.31,0.00035068,7]
[325005987,1714503056247,-941.79,0.00035068,7]
[325005989,1714503056256,-500.0,0.00035068,7]
[325005991,1714503056266,-500.0,0.00035068,7]
[325005993,1714503056275,-500.0,0.00035068,7]
[325005995,1714503056285,-605.09,0.00035068,7]
[325005997,1714503056296,-500.0,0.00035068,7]
[325005999,1714503056306,-576.85,0.00035068,7]
[325006002,1714503056315,-500.0,0.00035068,7]
[325006004,1714503056324,-500.0,0.00035068,7]
[325006006,1714503056334,-718.76,0.00035068,7]
[325006008,1714503056344,-500.0,0.00035068,7]
[325006010,1714503056353,-500.0,0.00035068,7]
[325006012,1714503056362,-500.0,0.00035068,7]
[325006014,1714503056372,-500.0,0.00035068,7]
[325006016,1714503056381,-1963.73,0.00035068,7]
[325006018,1714503056390,-500.0,0.00035068,7]
[325006020,1714503056399,-2044.95,0.00035068,7]
[325006021,1714503056408,-500.0,0.00035068,7]
[325006023,1714503056417,-502.72,0.00035068,7]
[325006026,1714503056427,-500.0,0.00035068,7]
[325006027,1714503056436,-500.0,0.00035068,7]
[325006029,1714503056445,-500.0,0.00035068,7]
[325006031,1714503056455,-1203.1,0.00035341,58]
[325006033,1714503056464,-500.0,0.00035342,7]
[325006035,1714503056473,-696.74,0.00035342,7]
[325006038,1714503056483,-500.0,0.00035342,7]
[325006040,1714503056492,-500.0,0.00035342,7]
[325006041,1714503056501,-554.14,0.00035342,7]
[325006043,1714503056510,-500.0,0.00035342,7]
[325006045,1714503056519,-500.0,0.00035342,7]
[325006048,1714503056528,-500.0,0.00035342,7]
[325006050,1714503056538,-300.80735457,0.00035342,7]
[325006052,1714503056547,-622.40696446,0.00035342,7]
[325006054,1714503056560,-500.0,0.00035342,7]
[325006055,1714503056569,-500.0,0.00035342,7]
[325006057,1714503056579,-500.0,0.00035342,7]
[325006060,1714503056588,-432.29698038,0.00035342,7]
[325006061,1714503056599,-500.0,0.00035342,7]
[325006063,1714503056608,-500.0,0.00035342,7]
[325006065,1714503056617,-574.65,0.00035342,7]
[325006067,1714503056627,-658.13,0.00035342,7]
[325006069,1714503056636,-500.0,0.00035342,7]
[325006071,1714503056645,-1040.92,0.00035342,7]
[325006073,1714503056655,-510.31,0.00035342,7]
[325006075,1714503056664,-941.79,0.00035342,7]
[325006078,1714503056673,-500.0,0.00035342,7]
[325006080,1714503056683,-500.0,0.00035342,7]
[325006082,1714503056692,-155.28,0.00035342,7]
[325006084,1714503056701,-605.09,0.00035342,7]
[325006085,1714503056711,-359.98803871,0.00035342,7]
[325006088,1714503056720,-576.85,0.00035342,7]
[325006089,1714503056729,-500.0,0.00035342,7]
[325006091,1714503056738,-500.0,0.00035342,7]
[325006094,1714503056748,-718.76,0.00035342,7]
[325006095,1714503056757,-500.0,0.00035342,7]
[325006097,1714503056767,-500.0,0.00035342,7]
[325006100,1714503056776,-500.0,0.00035342,7]
[325006102,1714503056785,-500.0,0.00035342,7]
[325006103,1714503056794,-1963.73,0.00035342,7]
[325006106,1714503056803,-500.0,0.00035342,7]
[325006107,1714503056812,-2044.95,0.00035342,7]
[325006109,1714503056821,-502.72,0.00035342,7]
[325006111,1714503056830,-500.0,0.00035342,7]
[325006113,1714503056839,-500.0,0.00035342,7]
[325006115,1714503056849,-751.9,0.00035491,14]
[325006117,1714503056857,-613.82914682,0.00035616,7]
[325006119,1714503056866,-696.74,0.00035616,7]
[325006120,1714503056875,-500.0,0.00035616,7]
[325006121,1714503056885,-500.0,0.00035616,7]
[325006122,1714503056894,-554.14,0.00035616,7]
[325006123,1714503056903,-500.0,0.00035616,7]
[325006124,1714503056912,-567.30408737,0.00035616,15]
[325006125,1714503056922,-500.0,0.00035616,7]
[325006126,1714503056930,-613.42739274,0.00035616,7]
[325006127,1714503056939,-500.0,0.00035616,7]
[325006128,1714503056949,-500.0,0.00035616,7]
[325006135,1714503057031,-500.0,0.00035616,7]
[325006137,1714503057049,-500.0,0.00035616,7]
[325006139,1714503057058,-202.9,0.00035616,7]
[325006141,1714503057067,-574.65,0.00035616,7]
[325006144,1714503057077,-658.13,0.00035616,7]
[325006146,1714503057086,-580.82,0.00035616,7]
[325006147,1714503057097,-1040.92,0.00035616,7]
[325006149,1714503057106,-510.31,0.00035616,7]
[325006152,1714503057116,-941.79,0.00035616,7]
[325006153,1714503057125,-590.30798627,0.00035616,7]
[325006155,1714503057134,-646.72,0.00035616,7]
[325006157,1714503057144,-605.09,0.00035616,7]
[325006160,1714503057153,-576.85,0.00035616,7]
[325006161,1714503057162,-500.0,0.00035616,7]
[325006164,1714503057172,-500.0,0.00035616,7]
[325006166,1714503057182,-718.76,0.00035616,7]
[325006168,1714503057190,-500.0,0.00035616,7]
[325006170,1714503057200,-500.0,0.00035616,7]
[325006172,1714503057209,-500.0,0.00035616,7]
[325006174,1714503057218,-500.0,0.00035616,7]
[325006176,1714503057227,-1963.73,0.00035616,7]
[325006178,1714503057236,-500.0,0.00035616,7]
[325006179,1714503057245,-2044.95,0.00035616,7]
[325006182,1714503057254,-502.72,0.00035616,7]
[325006184,1714503057264,-500.0,0.00035616,7]
[325006186,1714503057273,-500.0,0.00035616,7]
[325006187,1714503057283,-1332.28786,0.00035616,120]
[325006189,1714503057292,-417.0,0.00035694,2]
[325006192,1714503057302,-154.76784823,0.0003589,2]
[325006194,1714503057312,-696.74,0.0003589,7]
[325006195,1714503057321,-500.0,0.0003589,7]
[325006197,1714503057331,-500.0,0.0003589,7]
[325006199,1714503057341,-554.14,0.0003589,7]
[325006201,1714503057350,-500.0,0.0003589,7]
[325006204,1714503057360,-500.0,0.0003589,7]
[325006205,1714503057369,-500.0,0.0003589,7]
[325006208,1714503057379,-500.0,0.0003589,7]
[325006210,1714503057388,-500.0,0.0003589,7]
[325006212,1714503057397,-500.0,0.0003589,7]
[325006214,1714503057406,-574.65,0.0003589,7]
[325006216,1714503057416,-658.13,0.0003589,7]
[325006218,1714503057425,-1040.92,0.0003589,7]
[325006220,1714503057434,-510.31,0.0003589,7]
[325006222,1714503057444,-941.79,0.0003589,7]
[325006224,1714503057453,-605.09,0.0003589,7]
[325006226,1714503057463,-576.85,0.0003589,7]
[325006228,1714503057472,-500.0,0.0003589,7]
[325006230,1714503057482,-500.0,0.0003589,7]
[325006232,1714503057491,-718.76,0.0003589,7]
[325006234,1714503057501,-500.0,0.0003589,7]
[325006236,1714503057510,-500.0,0.0003589,7]
[325006238,1714503057519,-500.0,0.0003589,7]
[325006240,1714503057528,-500.0,0.0003589,7]
[325006242,1714503057538,-1963.73,0.0003589,7]
[325006244,1714503057547,-500.0,0.0003589,7]
[325006246,1714503057556,-2044.95,0.0003589,7]
[325006248,1714503057569,-502.72,0.0003589,7]
[325006250,1714503057578,-500.0,0.0003589,7]
[325006252,1714503057587,-500.0,0.0003589,7]
[325006254,1714503057598,-252.62250464,0.00036127,2]
[325006256,1714503057607,-696.74,0.00036164,7]
[325006258,1714503057617,-500.0,0.00036164,7]
[325006260,1714503057626,-500.0,0.00036164,7]
[325006262,1714503057635,-554.14,0.00036164,7]
[325006264,1714503057647,-500.0,0.00036164,7]
[325006267,1714503057657,-500.0,0.00036164,7]
[325006269,1714503057667,-236.01354817,0.00036164,7]
[325006271,1714503057676,-500.0,0.00036164,7]
[325006273,1714503057685,-500.0,0.00036164,7]
[325006275,1714503057695,-500.0,0.00036164,7]
[325006277,1714503057704,-574.65,0.00036164,7]
[325006279,1714503057714,-658.13,0.00036164,7]
[325006281,1714503057723,-1040.92,0.00036164,7]
[325006283,1714503057732,-510.31,0.00036164,7]
[325006285,1714503057742,-941.79,0.00036164,7]
[325006287,1714503057751,-605.09,0.00036164,7]
[325006289,1714503057760,-576.85,0.00036164,7]
[325006291,1714503057769,-500.0,0.00036164,7]
[325006293,1714503057779,-500.0,0.00036164,7]
[325006295,1714503057788,-718.76,0.00036164,7]
[325006297,1714503057797,-500.0,0.00036164,7]
[325006299,1714503057807,-500.0,0.00036164,7]
[325006301,1714503057816,-500.0,0.00036164,7]
[325006303,1714503057825,-500.0,0.00036164,7]
[325006305,1714503057834,-1963.73,0.00036164,7]
[325006306,1714503057844,-500.0,0.00036164,7]
[325006309,1714503057854,-2044.95,0.00036164,7]
[325006311,1714503057863,-502.72,0.00036164,7]
[325006313,1714503057872,-500.0,0.00036164,7]
[325006314,1714503057881,-500.0,0.00036164,7]
[325006316,1714503057891,-160.570029,0.00036301,2]
[325006318,1714503057901,-1203.1,0.00036437,61]
[325006320,1714503057910,-696.74,0.00036438,7]
[325006322,1714503057919,-334.92961965,0.00036438,7]
[325006324,1714503057928,-500.0,0.00036438,7]
[325006326,1714503057937,-554.14,0.00036438,7]
[325006329,1714503057947,-500.0,0.00036438,7]
[325006330,1714503057956,-500.0,0.00036438,7]
[325006333,1714503057966,-500.0,0.00036438,7]
[325006334,1714503057975,-500.0,0.00036438,7]
[325006336,1714503057984,-500.0,0.00036438,7]
[325006339,1714503057994,-574.65,0.00036438,7]
[325006340,1714503058004,-658.13,0.00036438,7]
[325006342,1714503058013,-1040.92,0.00036438,7]
[325006345,1714503058023,-510.31,0.00036438,7]